bitfinex-derivatives/quotes_SOLF0:USTF0_20250714
["timestamp","ask_amount","ask_price","bid_price","bid_amount"]
[1752498606153,5.9772,167.27,167.25,3.62]
[1752498606756,5.9774,167.26,167.25,3.62]
[1752498607858,5.9771,167.27,167.26,3.62]
[1752498608954,5.9768,167.28,167.26,3.62]
[1752498610763,5.977,167.27,167.26,3.62]
[1752498611062,351.33,167.29,167.26,3.62]
[1752498611361,5.9769,167.28,167.26,3.62]
[1752498611761,357.3064,167.29,167.26,9.5973]
[1752498611955,351.33,167.29,167.27,3.62]
[1752498612156,351.33,167.29,167.28,3.62]
[1752498612658,357.3063,167.29,167.28,3.62]
[1752498613063,353.7763,167.29,167.28,3.62]
[1752498615065,357.3063,167.29,167.28,3.62]
[1752498617663,3.33,167.26,167.15,517.30054539]
[1752498617857,351.54,167.25,167.18,3.99959761]
[1752498618057,5.9783,167.24,167.18,3.99959761]
[1752498618258,354.87,167.23,167.18,3.99959761]
[1752498618466,3.33,167.22,167.18,3.99959761]
[1752498618661,3.33,167.22,167.15,517.30054539]
[1752498618662,351.54,167.21,167.16,3.99959761]
[1752498619065,3.33,167.19,167.15,3.99959761]
[1752498619267,354.87,167.21,167.15,3.99959761]
[1752498619468,354.87,167.21,167.16,3.59]
[1752498619868,351.54,167.21,167.18,3.59]
[1752498620266,351.54,167.21,167.2,9.5695]
[1752498620667,354.87,167.21,167.2,3.59]
[1752498621371,354.87,167.21,167.2,9.5695]
[1752498621569,351.54,167.21,167.2,9.5695]
[1752498622268,354.87,167.21,167.2,3.59]
[1752498622672,11.9511,167.32,167.2,3.59]
[1752498622868,3.33,167.26,167.2,3.59]
[1752498623172,3.33,167.23,167.2,3.59]
[1752498623473,175.78,167.22,167.2,3.59]
[1752498623872,175.78,167.22,167.21,9.5691]
[1752498624167,175.78,167.22,167.21,3.59]
[1752498624376,179.11,167.22,167.21,3.59]
[1752498624677,3.33,167.21,167.19,3.59]
[1752498625472,5.9795,167.21,167.19,3.59]
[1752498625672,3.33,167.2,167.19,3.59]
[1752498627069,3.33,167.2,167.19,9.5699]
[1752498627273,3.33,167.2,167.19,3.59]
[1752498628370,3.33,167.2,167.16,3.99959761]
[1752498628571,3.33,167.19,167.18,9.5702]
[1752498630772,5.9793,167.21,167.19,5.9798]
[1752498630977,3.33,167.2,167.19,5.9798]
[1752498631577,3.33,167.2,167.19,9.5698]
[1752498633170,3.33,167.21,167.17,3.59]
[1752498633778,175.78,167.22,167.18,3.59]
[1752498634075,3.33,167.24,167.18,3.99959761]
[1752498634278,5.979,167.22,167.19,9.5698]
[1752498634469,3.33,167.23,167.19,9.5698]
[1752498634670,3.33,167.23,167.19,5.9798]
[1752498634881,3.33,167.23,167.2,3.59]
[1752498635068,5.979,167.22,167.2,3.59]
[1752498635268,3.33,167.21,167.2,3.59]
[1752498636276,3.33,167.21,167.2,9.5695]
[1752498637379,3.33,167.21,167.2,3.59]
[1752498637575,175.8,167.24,167.2,3.59]
[1752498637878,5.9785,167.23,167.21,3.59]
[1752498638079,179.13,167.24,167.21,3.59]
[1752498638281,3.33,167.23,167.21,3.59]
[1752498638576,3.99959761,167.29,167.23,3.59]
[1752498638776,3.33,167.27,167.24,3.99959761]
[1752498638980,3.33,167.27,167.25,3.59]
[1752498639179,9.307,167.27,167.26,3.59]
[1752498639886,3.33,167.27,167.26,3.59]
[1752498641280,9.307,167.27,167.26,3.59]
[1752498641589,3.33,167.27,167.26,3.59]
[1752498641981,3.33,167.32,167.27,3.59]
[1752498642275,3.99959761,167.31,167.25,3.59]
[1752498642480,5.9768,167.28,167.24,3.99959761]
[1752498642685,3.33,167.27,167.26,3.59]
[1752498643181,9.307,167.27,167.26,3.59]
[1752498643382,3.99959761,167.29,167.24,3.59]
[1752498643591,3.33,167.26,167.24,3.59]
[1752498644092,3.33,167.26,167.25,5.9775]
[1752498644282,3.33,167.26,167.25,9.5675]
[1752498645388,3.33,167.28,167.25,3.59]
[1752498645586,9.3068,167.28,167.25,3.59]
[1752498645791,3.33,167.27,167.26,3.59]
[1752498646999,3.33,167.27,167.26,9.5674]
[1752498647292,3.33,167.27,167.26,3.59]
[1752498647690,3.33,167.27,167.26,9.5674]
[1752498647890,3.62,167.33,167.25,3.45]
[1752498648094,3.62,167.32,167.27,3.45]
[1752498648393,175.74,167.33,167.2,20.94622872]
[1752498648394,3.62,167.3,167.29,3.45]
[1752498649797,3.62,167.3,167.29,9.4263]
[1752498652394,3.62,167.3,167.29,3.45]
[1752498652893,3.62,167.33,167.3,9.4258]
[1752498653094,3.62,167.33,167.31,3.45]
[1752498653496,3.62,167.33,167.31,5.9753]
[1752498653699,3.62,167.37,167.32,7.44959761]
[1752498653993,3.62,167.37,167.24,16.94373111]
[1752498653994,3.62,167.37,167.34,3.45]
[1752498654398,3.62,167.37,167.32,3.45]
[1752498654588,3.62,167.37,167.33,3.45]
[1752498654796,5.974,167.36,167.34,3.45]
[1752498655089,3.62,167.35,167.34,3.45]
[1752498656091,9.5941,167.35,167.32,7.44959761]
[1752498656292,3.62,167.34,167.33,3.45]
[1752498657999,9.5945,167.34,167.33,3.45]
[1752498658297,3.62,167.35,167.33,3.45]
[1752498658492,9.5942,167.35,167.33,3.45]
[1752498658696,5.9742,167.35,167.32,9.97479761]
[1752498658996,3.62,167.34,167.32,9.97479761]
[1752498659299,3.62,167.34,167.33,3.45]
[1752498659501,9.5945,167.34,167.33,3.45]
[1752498660296,3.62,167.34,167.31,3.45]
[1752498660501,3.62,167.34,167.32,9.4251]
[1752498660810,3.62,167.33,167.31,3.99959761]
[1752498661101,3.62,167.39,167.33,3.45]
[1752498661296,3.62,167.39,167.33,3.99959761]
[1752498661503,3.62,167.39,167.34,3.45]
[1752498662305,3.62,167.35,167.31,9.97499761]
[1752498662505,3.62,167.35,167.31,3.45]
[1752498662703,5.9752,167.32,167.31,3.45]
[1752498662906,5.9752,167.32,167.3,3.45]
[1752498662907,3.62,167.32,167.3,3.45]
[1752498663306,9.5956,167.31,167.3,3.45]
[1752498663807,9.5959,167.3,167.29,3.45]
[1752498664403,9.5959,167.3,167.27,5.9768]
[1752498664705,3.62,167.28,167.27,3.45]
[1752498665299,9.5966,167.28,167.27,3.45]
[1752498666802,9.5971,167.27,167.26,3.45]
[1752498667312,5.9771,167.27,167.25,3.99959761]
[1752498667500,3.62,167.26,167.25,3.45]
[1752498667706,3.62,167.26,167.24,9.4279]
[1752498668008,3.62,167.26,167.25,3.45]
[1752498668405,9.5974,167.26,167.25,3.45]
[1752498669713,5.9777,167.25,167.23,3.99959761]
[1752498669899,5.9777,167.25,167.24,3.45]
[1752498670102,3.99959761,167.29,167.22,3.45]
[1752498670504,3.62,167.23,167.21,3.99959761]
[1752498671003,3.62,167.23,167.22,3.45]
[1752498671712,9.5984,167.23,167.22,3.45]
[1752498672700,3.62,167.22,167.2,3.45]
[1752498672906,3.62,167.23,167.22,3.45]
[1752498673704,3.62,167.23,167.21,5.9789]
[1752498673705,3.62,167.25,167.23,3.45]
[1752498674404,3.62,167.25,167.24,9.4281]
[1752498675114,5.9768,167.28,167.24,5.9781]
[1752498675407,3.62,167.26,167.25,3.45]
[1752498676006,3.99959761,167.31,167.25,3.45]
[1752498676007,3.99959761,167.31,167.25,9.4277]
[1752498676213,5.977,167.27,167.26,3.45]
[1752498676411,9.597,167.27,167.26,3.45]
[1752498677310,3.62,167.27,167.26,3.45]
[1752498678508,3.61,167.26,167.25,3.38]
[1752498679414,3.61,167.26,167.25,9.3577]
[1752498679617,3.61,167.28,167.25,3.38]
[1752498680013,3.61,167.27,167.25,3.38]
[1752498680315,3.61,167.27,167.26,3.38]
[1752498682711,3.99959761,167.32,167.24,3.99959761]
[1752498682911,3.61,167.29,167.27,3.38]
[1752498683512,3.61,167.32,167.27,3.38]
[1752498684112,3.61,167.28,167.27,3.38]
[1752498684516,3.61,167.28,167.27,9.357]
[1752498684728,3.61,167.28,167.26,3.38]
[1752498685018,9.5866,167.28,167.27,3.38]
[1752498685213,9.5866,167.28,167.25,9.97709761]
[1752498685214,3.61,167.28,167.25,7.37959761]
[1752498685417,3.61,167.28,167.26,3.38]
[1752498685619,9.5872,167.27,167.26,3.38]
[1752498685821,3.61,167.27,167.26,3.38]
[1752498687123,9.587,167.27,167.26,3.38]
[1752498687323,3.61,167.27,167.26,3.38]
[1752498689226,3.61,167.29,167.27,3.38]
[1752498689519,3.61,167.29,167.28,3.38]
[1752498690320,3.61,167.29,167.27,3.99959761]
[1752498690523,3.61,167.29,167.27,7.37959761]
[1752498690922,3.61,167.33,167.28,3.38]
[1752498691522,3.61,167.33,167.26,9.3572]
[1752498691724,3.61,167.33,167.26,13.35679761]
[1752498691923,5.9765,167.29,167.26,13.35679761]
[1752498692122,3.61,167.28,167.27,3.38]
[1752498693623,3.61,167.28,167.27,5.977]
[1752498693825,3.61,167.28,167.27,3.38]
[1752498694726,3.61,167.28,167.27,9.357]
[1752498695427,3.61,167.28,167.27,3.38]
[1752498696017,3.61,167.28,167.27,9.357]
[1752498696222,3.61,167.29,167.27,9.357]
[1752498696422,3.61,167.29,167.28,3.38]
[1752498698235,3.61,167.28,167.27,3.38]
[1752498700626,9.5866,167.28,167.27,3.38]
[1752498704936,3.61,167.28,167.24,3.38]
[1752498705635,3.61,167.29,167.22,3.38]
[1752498706035,5.9784,167.23,167.21,3.99959761]
[1752498706236,3.61,167.22,167.19,8.9911731]
[1752498706435,3.61,167.22,167.19,3.99959761]
[1752498706638,3.61,167.22,167.2,5.9794]
[1752498706934,3.61,167.22,167.21,3.38]
[1752498707135,3.61,167.22,167.21,9.4691]
[1752498707332,3.61,167.22,167.21,3.49]
[1752498708534,5.9782,167.24,167.21,3.49]
[1752498708731,3.39,167.23,167.21,3.49]
[1752498709243,9.3684,167.23,167.22,3.49]
[1752498711542,5.9789,167.22,167.21,3.49]
[1752498711744,9.3689,167.22,167.21,3.49]
[1752498712438,3.39,167.2,167.19,3.99959761]
[1752498712938,3.39,167.2,167.19,7.48959761]
[1752498713146,3.39,167.2,167.19,13.46949761]
[1752498713944,3.39,167.2,167.19,7.48959761]
[1752498715050,3.39,167.26,167.2,3.49]
[1752498715540,3.39,167.23,167.2,3.49]
[1752498715950,5.9775,167.26,167.23,5.9784]
[1752498716152,3.39,167.24,167.22,3.49]
[1752498716348,3.39,167.24,167.23,9.71351696]
[1752498718652,9.3681,167.24,167.23,9.71351696]
[1752498719854,3.39,167.24,167.23,9.71351696]
[1752498721256,3.39,167.24,167.23,3.49]
[1752498724164,9.3681,167.24,167.23,3.49]
[1752498724464,3.39,167.24,167.23,3.49]
[1752498724667,3.39,167.29,167.24,3.49]
[1752498724860,3.39,167.26,167.24,3.49]
[1752498725664,3.39,167.28,167.26,3.49]
[1752498725853,3.39,167.28,167.26,9.4671]
[1752498726056,3.39,167.28,167.27,7.48959761]
[1752498726657,9.3666,167.28,167.27,7.48959761]
[1752498726961,9.3666,167.28,167.27,3.49]
[1752498728857,3.39,167.28,167.27,3.49]
[1752498730161,9.3659,167.3,167.28,3.49]
[1752498730369,3.39,167.3,167.29,13.59552181]
[1752498730561,3.39,167.3,167.29,6.1059242]
[1752498730865,3.39,167.3,167.24,3.99959761]
[1752498731066,3.39,167.3,167.26,3.49]
[1752498731363,3.39,167.3,167.25,6.10808634]
[1752498731364,3.39,167.3,167.27,6.10808634]
[1752498731666,5.9763,167.29,167.28,6.10808634]
[1752498731867,3.39,167.29,167.28,6.10692652]
[1752498732668,9.3663,167.29,167.28,6.10692652]
[1752498736772,5.977,167.27,167.26,3.49]
[1752498737072,9.547,167.27,167.26,9.66362998]
[1752498738169,9.547,167.27,167.26,6.17362998]
[1752498739771,9.5484,167.23,167.22,3.36]
[1752498739973,9.5484,167.23,167.22,9.53880345]
[1752498741669,9.5484,167.23,167.22,6.17880345]
[1752498742672,5.9791,167.21,167.2,3.36]
[1752498742874,9.5491,167.21,167.2,3.36]
[1752498743673,5.9789,167.22,167.2,3.36]
[1752498743866,9.5489,167.22,167.2,3.36]
[1752498744070,3.57,167.24,167.2,3.36]
[1752498744269,3.57,167.26,167.22,3.36]
[1752498744472,3.57,167.25,167.22,3.36]
[1752498744875,9.5479,167.25,167.22,5.9786]
[1752498745178,3.57,167.25,167.23,3.36]
[1752498745375,5.9781,167.24,167.23,3.36]
[1752498745775,3.57,167.26,167.23,3.36]
[1752498745969,5.9779,167.25,167.23,3.36]
[1752498746171,9.5479,167.25,167.23,3.36]
[1752498746872,9.5481,167.24,167.22,3.36]
[1752498747176,3.57,167.23,167.22,3.36]
[1752498747566,9.5484,167.23,167.22,3.36]
[1752498748277,3.57,167.23,167.22,3.36]
[1752498749571,9.5484,167.23,167.22,3.36]
[1752498749772,3.57,167.23,167.2,3.36]
[1752498750079,5.9791,167.22,167.21,3.36]
[1752498750271,9.5491,167.22,167.21,3.36]
[1752498750673,3.57,167.21,167.2,3.36]
[1752498751374,9.5491,167.21,167.2,3.36]
[1752498751572,3.57,167.21,167.2,3.36]
[1752498752577,9.549,167.22,167.2,3.36]
[1752498753678,5.979,167.22,167.2,3.36]
[1752498753878,9.549,167.22,167.2,3.36]
[1752498754782,5.979,167.22,167.2,3.36]
[1752498755082,3.57,167.21,167.19,9.97929761]
[1752498755585,3.57,167.21,167.2,9.3395]
[1752498755877,3.99959761,167.26,167.21,3.36]
[1752498756078,3.57,167.24,167.22,3.36]
[1752498756582,5.9783,167.24,167.22,3.36]
[1752498757083,3.57,167.24,167.22,9.3387]
[1752498757278,3.57,167.24,167.23,3.36]
[1752498757982,3.57,167.24,167.23,9.64211126]
[1752498758983,9.5481,167.24,167.23,9.64211126]
[1752498759280,9.5481,167.24,167.23,6.28211126]
[1752498761977,9.5481,167.24,167.23,9.64211126]
[1752498762377,3.57,167.24,167.23,9.64211126]
[1752498763082,9.5481,167.24,167.23,9.64211126]
[1752498763280,9.02787019,167.29,167.23,9.64211126]
[1752498763584,9.5474,167.26,167.25,3.36]
[1752498763777,9.5474,167.26,167.25,9.64211126]
[1752498764579,9.5474,167.26,167.25,6.28211126]
[1752498764783,9.5474,167.26,167.25,9.64211126]
[1752498765982,9.5474,167.26,167.25,3.36]
[1752498766189,9.5474,167.26,167.25,9.50648196]
[1752498766380,3.57,167.26,167.25,9.50648196]
[1752498767084,9.5474,167.26,167.25,9.50648196]
[1752498767690,9.5474,167.26,167.25,6.14648196]
[1752498770484,9.5474,167.26,167.25,8.196e-05]
[1752498770982,9.4597,167.2,167.19,3.42]
[1752498771585,5.9792,167.21,167.19,3.42]
[1752498771885,3.48,167.2,167.16,3.99959761]
[1752498772186,3.48,167.2,167.18,5.9802]
[1752498772382,9.4598,167.2,167.16,3.99959761]
[1752498772580,9.4598,167.2,167.17,5.9804]
[1752498772776,3.48,167.23,167.18,7.41959761]
[1752498772979,9.02787019,167.27,167.19,3.42]
[1752498773177,3.48,167.22,167.2,3.42]
[1752498773389,3.48,167.26,167.19,3.42]
[1752498773687,5.9795,167.2,167.19,3.42]
[1752498773982,9.4595,167.2,167.19,3.42]
[1752498776588,3.48,167.2,167.19,3.42]
[1752498776789,9.4595,167.21,167.19,3.42]
[1752498777288,3.48,167.21,167.19,9.3998]
[1752498777489,3.48,167.21,167.2,3.42]
[1752498778184,9.4592,167.21,167.2,3.42]
[1752498779884,5.9795,167.2,167.18,3.99959761]
[1752498780085,5.9795,167.2,167.14,180.48158254]
[1752498780086,3.48,167.19,167.16,3.99959761]
[1752498780389,3.48,167.22,167.16,3.99959761]
[1752498780588,3.48,167.22,167.17,3.42]
[1752498781092,9.4601,167.19,167.17,3.42]
[1752498782988,5.9796,167.2,167.18,3.42]
[1752498783187,9.4596,167.2,167.18,3.42]
[1752498783492,3.48,167.24,167.2,3.42]
[1752498784192,3.48,167.22,167.21,3.42]
[1752498787488,9.4588,167.22,167.21,3.42]
[1752498787689,3.48,167.22,167.2,3.42]
[1752498787892,3.48,167.22,167.21,3.42]
[1752498789097,9.4588,167.22,167.21,3.42]
[1752498791401,3.48,167.22,167.21,3.42]
[1752498791595,5.9786,167.23,167.21,3.42]
[1752498791994,9.4586,167.23,167.21,3.42]
[1752498792300,5.9786,167.23,167.21,3.42]
[1752498792598,3.48,167.22,167.21,3.42]
[1752498794198,3.48,167.22,167.21,9.56300181]
[1752498795905,9.4588,167.22,167.21,9.56300181]
[1752498796099,9.4588,167.22,167.21,3.42]
[1752498796903,3.48,167.22,167.21,3.42]
[1752498798309,9.4588,167.22,167.21,3.42]
[1752498800005,3.48,167.22,167.21,3.42]
[1752498800308,5.9786,167.23,167.21,3.42]
[1752498800600,9.3786,167.23,167.21,3.42]
[1752498800805,3.4,167.22,167.21,3.42]
[1752498802604,9.3788,167.22,167.21,3.42]
[1752498803900,5.9792,167.21,167.2,3.53]
[1752498804601,5.9792,167.21,167.19,7.52959761]
[1752498804807,5.03135243,167.25,167.18,5.9801]
[1752498804808,3.4,167.2,167.18,3.53]
[1752498805705,9.3802,167.19,167.18,3.53]
[1752498805907,3.4,167.19,167.18,3.53]
[1752498806302,9.3799,167.19,167.18,3.53]
[1752498807403,3.4,167.19,167.18,3.53]
[1752498808708,9.3799,167.19,167.18,3.53]
[1752498808905,3.4,167.19,167.18,3.53]
[1752498810214,5.9798,167.2,167.18,3.53]
[1752498810507,5.03135243,167.24,167.18,3.53]
[1752498810705,3.4,167.23,167.19,3.99959761]
[1752498810910,3.4,167.22,167.2,3.53]
[1752498811216,3.4,167.21,167.2,9.5095]
[1752498811412,3.4,167.21,167.2,9.62905765]
[1752498812113,3.4,167.21,167.2,3.53]
[1752498818216,3.4,167.22,167.2,3.53]
[1752498819118,3.4,167.23,167.22,3.53]
[1752498819822,3.4,167.24,167.22,3.53]
[1752498820221,3.4,167.24,167.23,13.50799761]
[1752498820418,3.4,167.24,167.23,13.78215372]
[1752498820922,3.4,167.24,167.23,13.78212795]
[1752498822315,3.4,167.24,167.23,7.52959761]
[1752498823423,5.9772,167.27,167.23,7.52959761]
[1752498823635,3.4,167.27,167.26,3.53]
[1752498824331,3.4,167.27,167.26,9.60453926]
[1752498824629,9.377,167.27,167.26,9.60453926]
[1752498826631,9.377,167.27,167.26,3.53]
[1752498826833,9.377,167.27,167.26,9.69512564]
[1752498827235,9.377,167.27,167.26,9.69429673]
[1752498827538,9.377,167.27,167.26,9.69429657]
[1752498829035,9.377,167.27,167.26,6.16429657]
[1752498831240,9.377,167.27,167.26,9.52429657]
[1752498831737,3.65,167.31,167.27,3.36]
[1752498831931,3.65,167.31,167.29,3.36]
[1752498832129,3.65,167.31,167.3,6.16429657]
[1752498832330,9.6256,167.31,167.3,6.16429657]
[1752498832532,3.65,167.31,167.29,3.36]
[1752498832927,5.9759,167.3,167.29,3.36]
[1752498833131,9.6259,167.3,167.29,3.36]
[1752498833535,3.65,167.3,167.29,9.42381856]
[1752498834237,3.65,167.3,167.29,13.42341617]
[1752498834439,9.6259,167.3,167.29,13.42341617]
[1752498835541,9.6259,167.3,167.29,13.41854984]
[1752498838037,3.65,167.3,167.29,13.41854984]
[1752498838440,3.65,167.3,167.29,7.35959761]
[1752498838638,3.65,167.3,167.29,13.41201784]
[1752498839142,9.6259,167.3,167.29,13.41201784]
[1752498840645,3.65,167.3,167.29,13.41201784]
[1752498840844,3.65,167.31,167.3,3.36]
[1752498841044,3.65,167.31,167.3,9.41242023]
[1752498841644,9.6256,167.31,167.3,9.41242023]
[1752498842744,3.65,167.38,167.31,3.36]
[1752498842946,3.65,167.41,167.37,3.99959761]
[1752498843135,9.6221,167.41,167.39,3.36]
[1752498843341,3.65,167.4,167.39,7.35959761]
[1752498843540,3.65,167.4,167.39,13.40132032]
[1752498845148,9.6224,167.4,167.39,13.40132032]
[1752498846140,9.6224,167.4,167.39,7.35959761]
[1752498846340,9.6224,167.4,167.39,13.38332888]
[1752498846547,9.6224,167.4,167.39,10.02332888]
[1752498846749,9.6224,167.4,167.39,13.38332888]
[1752498849056,5.9722,167.41,167.4,3.36]
[1752498849244,5.9722,167.41,167.4,9.37174824]
[1752498849949,9.6222,167.41,167.4,9.37174824]
[1752498850851,9.6222,167.41,167.4,6.01174824]
[1752498851156,9.6222,167.41,167.4,9.37174824]
[1752498851857,5.9724,167.4,167.39,3.99959761]
[1752498852055,9.6224,167.4,167.39,13.36416032]
[1752498853755,5.9724,167.4,167.39,13.36416032]
[1752498854663,5.9722,167.41,167.4,3.36]
[1752498854856,5.9722,167.41,167.4,9.36456271]
[1752498855359,9.6222,167.41,167.4,6.00456271]
[1752498855559,9.6227,167.39,167.38,7.35959761]
[1752498856153,3.65,167.39,167.38,7.35959761]
[1752498856761,9.6227,167.39,167.38,7.35959761]
[1752498858559,5.9725,167.4,167.38,7.35959761]
[1752498858760,5.9725,167.4,167.39,3.32]
[1752498858963,3.51,167.4,167.39,3.32]
[1752498859160,3.99959761,167.46,167.39,3.32]
[1752498859365,3.51,167.45,167.41,3.32]
[1752498859565,5.9717,167.42,167.41,3.32]
[1752498860059,3.51,167.42,167.38,3.99959761]
[1752498860264,9.4826,167.4,167.39,3.32]
[1752498863067,9.4822,167.41,167.39,3.32]
[1752498864469,3.51,167.4,167.39,3.32]
[1752498866876,5.9722,167.41,167.39,3.32]
[1752498867070,9.4822,167.41,167.39,3.32]
[1752498868073,9.4824,167.4,167.39,3.32]
[1752498870377,3.51,167.4,167.39,3.32]
[1752498870578,9.4821,167.41,167.39,3.32]
[1752498870774,3.51,167.41,167.39,3.32]
[1752498870977,181.86386135,167.47,167.4,7.31959761]
[1752498871175,1.03986135,167.47,167.42,3.99959761]
[1752498871376,9.4813,167.43,167.42,7.31959761]
[1752498872877,9.4812,167.44,167.43,3.32]
[1752498873677,3.51,167.44,167.43,3.32]
[1752498875079,9.4809,167.44,167.43,3.32]
[1752498875575,3.51,167.44,167.43,7.31959761]
[1752498875776,3.51,167.45,167.44,3.32]
[1752498877380,3.51,167.47,167.44,3.32]
[1752498877678,3.51,167.46,167.44,3.32]
[1752498879282,3.51,167.46,167.45,3.99959761]
[1752498879483,3.51,167.46,167.45,7.31959761]
[1752498879982,9.4802,167.46,167.45,7.31959761]
[1752498880185,3.51,167.46,167.44,3.32]
[1752498880476,5.9704,167.46,167.43,3.32]
[1752498880675,3.51,167.45,167.43,3.32]
[1752498881083,5.9704,167.46,167.43,9.2912]
[1752498881378,3.51,167.46,167.44,7.31959761]
[1752498881582,3.51,167.46,167.45,3.32]
[1752498881883,3.51,167.51,167.45,3.32]
[1752498882272,3.51,167.51,167.46,3.99959761]
[1752498882580,3.99959761,167.52,167.47,3.32]
[1752498882581,9.4797,167.48,167.47,3.32]
[1752498883281,3.51,167.48,167.47,3.32]
[1752498883882,9.4795,167.48,167.47,3.32]
[1752498885579,9.4795,167.48,167.47,9.29861475]
[1752498886484,9.4795,167.48,167.47,5.97861475]
[1752498886684,9.4795,167.48,167.47,9.29861475]
[1752498886885,9.4795,167.48,167.47,3.32]
[1752498887088,9.4795,167.48,167.47,9.2966333]
[1752498888080,9.4795,167.48,167.47,5.9766333]
[1752498889784,9.4795,167.48,167.47,9.5066333]
[1752498890382,9.4795,167.48,167.47,5.9766333]
[1752498895180,9.4795,167.48,167.47,3.33e-05]
[1752498895686,13.47909761,167.48,167.47,3.33e-05]
[1752498895892,9.432,167.41,167.38,3.99959761]
[1752498896087,3.46,167.45,167.38,3.99959761]
[1752498896390,5.9713,167.43,167.41,3.53]
[1752498896784,5.9713,167.43,167.42,3.53]
[1752498897085,9.4311,167.44,167.42,3.53]
[1752498897691,5.9713,167.43,167.42,3.53]
[1752498898490,5.9711,167.44,167.42,3.53]
[1752498899089,9.4308,167.45,167.42,3.53]
[1752498899990,5.9711,167.44,167.42,3.53]
[1752498900192,3.46,167.44,167.42,3.53]
[1752498900685,9.4312,167.44,167.42,3.53]
[1752498900894,3.46,167.44,167.42,3.53]
[1752498901091,9.431,167.44,167.42,3.53]
[1752498901288,3.46,167.44,167.42,3.53]
[1752498901493,3.46,167.47,167.42,3.53]
[1752498901694,8.97915429,167.5,167.43,3.53]
[1752498901994,3.46,167.49,167.36,8.94455688]
[1752498902298,9.4299,167.47,167.46,3.53]
[1752498902494,3.46,167.47,167.46,3.53]
[1752498903592,3.46,167.48,167.46,3.53]
[1752498903994,3.46,167.48,167.46,9.5001]
[1752498904192,9.4289,167.5,167.48,3.53]
[1752498904891,3.46,167.5,167.49,3.99959761]
[1752498905092,3.99959761,167.56,167.49,3.99959761]
[1752498905293,3.46,167.51,167.5,3.53]
[1752498906588,3.46,167.51,167.3,538.53718567]
[1752498906794,3.46,167.5,167.49,3.53]
[1752498907992,3.46,167.5,167.49,9.67213983]
[1752498912395,3.46,167.5,167.49,3.53]
[1752498912597,3.46,167.5,167.49,9.67258634]
[1752498912998,3.46,167.5,167.49,9.67281728]
[1752498914497,3.46,167.52,167.5,3.53]
[1752498914694,3.46,167.52,167.51,6.14281728]
[1752498914897,3.46,167.52,167.51,9.67281728]
[1752498915192,3.46,167.51,167.44,3.99959761]
[1752498915398,3.46,167.5,167.49,3.53]
[1752498915795,9.4288,167.5,167.49,3.53]